lending/lending_fUSD_20251114
["ID","MTS","AMOUNT","RATE_DAILY","PERIOD"]
[393959397,1763130297372,-14.4410658,0.00016167,2]
[393959398,1763130297394,-294.72197736,0.00016173,2]
[393959399,1763130302292,-205.27802264,0.00016173,2]
[393959400,1763130302316,-65.74632752,0.00016173,2]
[393959401,1763130304483,-296.06062583,0.00016172,2]
[393959402,1763130307520,-3.93937417,0.00016172,2]
[393959403,1763130307554,-170.20971909,0.00016172,2]
[393959404,1763130307649,1200.0,0.00041454,120]
[393959405,1763130311370,-151.0,0.00016167,2]
[393959406,1763130311408,-184.16954943,0.00016167,2]
[393959407,1763130311441,-1029.79028091,0.00016172,2]
[393959408,1763130311475,-434.25367248,0.00016173,2]
[393959409,1763130311509,-500.0,0.00016173,2]
[393959410,1763130311548,-500.0,0.00016173,2]
[393959411,1763130311582,-500.0,0.00016173,2]
[393959412,1763130311614,-500.0,0.00016173,2]
[393959413,1763130311646,-550.0,0.00016175,2]
[393959414,1763130311678,-169.53127003,0.00016176,2]
[393959415,1763130311718,-462.5204543,0.00016176,2]
[393959416,1763130311983,-37.4795457,0.00016176,2]
[393959417,1763130312028,-500.0,0.00016176,2]
[393959418,1763130312069,-500.0,0.00016176,2]
[393959419,1763130312111,-500.0,0.00016176,2]
[393959420,1763130312153,-500.0,0.00016176,2]
[393959421,1763130312196,-500.0,0.00016176,2]
[393959422,1763130312239,-500.0,0.00016176,2]
[393959423,1763130312462,-500.0,0.00016176,2]
[393959424,1763130312502,-500.0,0.00016176,2]
[393959425,1763130312544,-500.0,0.00016176,2]
[393959426,1763130312587,-425.0509086,0.00016176,2]
[393959427,1763130312736,-74.9490914,0.00016176,2]
[393959428,1763130312776,-500.0,0.00016176,2]
[393959429,1763130312840,-500.0,0.00016176,2]
[393959430,1763130312895,-500.0,0.00016176,2]
[393959431,1763130312937,-500.0,0.00016176,2]
[393959432,1763130312983,-500.0,0.00016176,2]
[393959433,1763130313024,-500.0,0.00016176,2]
[393959434,1763130313071,-500.0,0.00016176,2]
[393959435,1763130313109,-500.0,0.00016176,2]
[393959436,1763130313149,-500.0,0.00016176,2]
[393959437,1763130313188,-350.1118172,0.00016176,2]
[393959438,1763130313234,-149.8881828,0.00016176,2]
[393959439,1763130313266,-67.92291506,0.00016176,2]
[393959440,1763130313346,-432.07708494,0.00016176,2]
[393959441,1763130313399,-500.0,0.00016176,2]
[393959442,1763130313447,-500.0,0.00016176,2]
[393959443,1763130313486,-483.23844084,0.00016176,2]
[393959444,1763130313537,-500.0,0.00016176,2]
[393959445,1763130313581,-500.0,0.00016176,2]
[393959446,1763130313621,-500.0,0.00016176,2]
[393959447,1763130313662,-500.0,0.00016176,2]
[393959448,1763130313701,-500.0,0.00016176,2]
[393959449,1763130313734,-500.0,0.00016176,2]
[393959450,1763130314016,-500.0,0.00016176,2]
[393959451,1763130314058,-500.0,0.00016176,2]
[393959452,1763130314111,-500.0,0.00016176,2]
[393959453,1763130314147,-500.0,0.00016176,2]
[393959454,1763130314184,-500.0,0.00016176,2]
[393959455,1763130314219,-500.0,0.00016176,2]
[393959456,1763130314255,-500.0,0.00016176,2]
[393959457,1763130314294,-500.0,0.00016176,2]
[393959458,1763130314332,-500.0,0.00016176,2]
[393959459,1763130314371,-500.0,0.00016176,2]
[393959460,1763130314536,-500.0,0.00016176,2]
[393959461,1763130314574,-500.0,0.00016176,2]
[393959462,1763130314612,-500.0,0.00016176,2]
[393959463,1763130314653,-500.0,0.00016176,2]
[393959464,1763130314700,-500.0,0.00016176,2]
[393959465,1763130314741,-500.0,0.00016176,2]
[393959466,1763130314786,-500.0,0.00016176,2]
[393959467,1763130314828,-500.0,0.00016176,2]
[393959468,1763130314871,-500.0,0.00016176,2]
[393959469,1763130314916,-500.0,0.00016176,2]
[393959470,1763130314996,-500.0,0.00016176,2]
[393959471,1763130315039,-500.0,0.00016176,2]
[393959472,1763130315084,-500.0,0.00016176,2]
[393959473,1763130315127,-500.0,0.00016176,2]
[393959474,1763130315170,-500.0,0.00016176,2]
[393959475,1763130315208,-288.87142939,0.00016176,2]
[393959476,1763130315250,-500.0,0.00016176,2]
[393959477,1763130315292,-500.0,0.00016176,2]
[393959478,1763130315334,-500.0,0.00016176,2]
[393959479,1763130315376,-320.58672477,0.00016176,2]
[393959480,1763130315418,-281.09369168,0.00016176,2]
[393959481,1763130315578,-218.90630832,0.00016176,2]
[393959482,1763130315619,-500.0,0.00016176,2]
[393959483,1763130315660,-160.67491504,0.00016176,2]
[393959484,1763130315706,-500.0,0.00016176,2]
[393959485,1763130315750,-500.0,0.00016176,2]
[393959486,1763130315791,-500.0,0.00016176,2]
[393959487,1763130315832,-500.0,0.00016176,2]
[393959488,1763130315874,-500.0,0.00016176,2]
[393959489,1763130315915,-500.0,0.00016176,2]
[393959490,1763130315953,-500.0,0.00016176,2]
[393959491,1763130315994,-500.0,0.00016176,2]
[393959492,1763130317342,-500.0,0.00016176,2]
[393959493,1763130317382,-500.0,0.00016176,2]
[393959494,1763130317422,-500.0,0.00016176,2]
[393959495,1763130317463,-500.0,0.00016176,2]
[393959496,1763130317501,-465.26016706,0.00016176,2]
[393959497,1763130317544,-500.0,0.00016176,2]
[393959498,1763130317586,-500.0,0.00016176,2]
[393959499,1763130317623,-160.67491505,0.00016176,2]
[393959500,1763130317656,-330.46872997,0.00016176,2]
[393959501,1763130317694,-500.0,0.00016176,2]
[393959502,1763130317725,-500.0,0.00016176,2]
[393959503,1763130317843,-301.56028555,0.00016176,2]
[393959504,1763130317874,-500.0,0.00016176,2]
[393959505,1763130317904,-501.37804262,0.00016176,2]
[393959506,1763130317937,-356.36676528,0.00016176,2]
[393959507,1763130317968,-500.0,0.00016176,2]
[393959508,1763130318006,-500.0,0.00016176,2]
[393959509,1763130318047,-500.0,0.00016176,2]
[393959510,1763130318084,-500.0,0.00016176,2]
[393959511,1763130318120,-500.0,0.00016176,2]
[393959512,1763130318159,-500.0,0.00016176,2]
[393959513,1763130318196,-181.3998131,0.00016176,2]
[393959514,1763130318309,-318.6001869,0.00016176,2]
[393959515,1763130318349,-500.0,0.00016176,2]
[393959516,1763130318389,-500.0,0.00016176,2]
[393959517,1763130318428,-500.0,0.00016176,2]
[393959518,1763130318466,-500.0,0.00016176,2]
[393959519,1763130318506,-500.0,0.00016176,2]
[393959520,1763130318550,-356.42499143,0.00016176,2]
[393959521,1763130318591,-500.0,0.00016176,2]
[393959522,1763130318630,-500.0,0.00016176,2]
[393959523,1763130318668,-500.0,0.00016176,2]
[393959524,1763130318705,-149.95964334,0.00016176,2]
[393959525,1763130318785,-196.26768281,0.00016176,2]
[393959526,1763130320820,-24.02517833,0.00016176,2]
[393959527,1763130320841,-129.74749552,0.00016176,2]
[393959528,1763130320850,-370.25250448,0.00016176,2]
[393959529,1763130320867,-129.74749552,0.00016176,2]
[393959530,1763130321418,-204.2401967,0.00016176,2]
[393959531,1763130327108,-247.36108504,0.00016176,2]
[393959532,1763130327860,129332.18681832,0.00041454,30]
[393959533,1763130328667,-48.39871826,0.00016176,2]
[393959534,1763130328691,-131.01335899,0.00016176,2]
[393959535,1763130330226,-253.73949797,0.00016176,2]
[393959536,1763130330374,-115.24714304,0.00016176,2]
[393959537,1763130330407,-500.0,0.00016176,2]
[393959538,1763130330441,-500.0,0.00016176,2]
[393959539,1763130330478,-500.0,0.00016176,2]
[393959540,1763130330515,-500.0,0.00016176,2]
[393959541,1763130330659,-5769.51571392,0.00016177,2]
[393959542,1763130330706,-10000.01,0.00016177,2]
[393959543,1763130330890,-10000.01,0.00016177,2]
[393959544,1763130332774,-10000.01,0.00016177,2]
[393959545,1763130334198,-10000.01,0.00016177,2]
[393959546,1763130334360,-10000.01,0.00016177,2]
[393959547,1763130334536,-10000.01,0.00016177,2]
[393959548,1763130335235,-336.03492657,0.00016176,2]
[393959549,1763130336612,3328.24434078,0.0001,2]
[393959550,1763130339589,-977.95746316,0.00016078,2]
[393959551,1763130339618,-8044.09507368,0.00016078,2]
[393959552,1763130339735,-673.74715527,0.00016078,2]
[393959553,1763130339770,-163.96507343,0.00016176,2]
[393959554,1763130339828,-8324.5855426,0.00016177,2]
[393959555,1763130339857,-10000.01,0.00016177,2]
[393959557,1763130368277,5780.054702,7.945e-05,2]
[393959558,1763130394772,276.0,0.0003,120]
[393959559,1763130415465,53020.50284346,0.000162,5]
[393959560,1763130415491,4799.54715654,0.000162,5]
[393959561,1763130426976,-276.27759435,0.000153,2]
[393959562,1763130431784,-154.13568935,0.000153,2]
[393959563,1763130433824,-193.0,0.000153,2]
[393959564,1763130440791,-329.44738722,0.000153,2]
[393959565,1763130447444,-170.55261278,0.000153,2]
[393959566,1763130450099,-345.40793149,0.000153,2]
[393959568,1763130454400,-48.81878481,0.000153,2]
[393959569,1763130454427,-235.40589205,0.0001543,2]
[393959570,1763130456413,-216.03941731,0.0001543,2]
[393959572,1763130486467,-221.41045012,0.00015399,2]
[393959577,1763130509577,-2104.68954988,0.00015399,2]
[393959578,1763130509611,-206.87469064,0.0001543,2]
[393959579,1763130509643,-500.0,0.00015976,2]
[393959580,1763130509673,-1200.0,0.00016076,2]
[393959581,1763130509703,-300.0,0.00016076,2]
[393959582,1763130509818,-1376.88151896,0.00016077,2]
[393959583,1763130512443,-1417.50038104,0.00016077,2]
[393959584,1763130512475,-234.6662,0.00016077,2]
[393959585,1763130512507,-1000.0,0.00016077,2]
[393959586,1763130512545,-1053.0202,0.00016077,2]
[393959587,1763130512586,-1258.003,0.00016077,2]
[393959588,1763130512727,-73.63043792,0.00016077,2]
[393959591,1763130518497,-10000.01,0.00015,3]
[393959594,1763130532713,-210.4552947,0.00015,3]
[393959595,1763130535410,-180.68372135,0.00015,3]
[393959596,1763130539440,2789.63,7.751e-05,2]
[393959597,1763130539739,2789.63,8.159e-05,2]
[393959598,1763130539878,-185.8387768,0.00015,3]
[393959599,1763130539946,2789.63,8.567e-05,2]
[393959600,1763130540170,2789.63,8.975e-05,2]
[393959601,1763130540385,2789.63,9.383e-05,2]
[393959602,1763130540617,2789.63,9.791e-05,2]
[393959603,1763130541035,2789.63,0.00010199,2]
[393959604,1763130541253,2789.63,0.00010607,2]
[393959605,1763130541471,2789.63,0.00011015,2]
[393959606,1763130541677,2789.63,0.00011423,2]
[393959607,1763130541898,2789.63,0.00011831,2]
[393959608,1763130542116,2789.63,0.00012239,2]
[393959609,1763130542338,2789.63,0.00012647,2]
[393959610,1763130542561,2789.63,0.00013054,2]
[393959611,1763130542695,-829.49475504,0.00015,3]
[393959612,1763130542794,2789.63,0.00013462,2]
[393959615,1763130545341,-169.7367218,0.0001387,2]
[393959616,1763130551815,-267.8318977,0.0001387,2]
[393959617,1763130553957,-200.41974875,0.0001387,2]
[393959618,1763130554400,-2151.64163175,0.0001387,2]
[393959619,1763130554421,-2789.63,0.00014278,2]
[393959620,1763130554442,-398.43888425,0.00014686,2]
[393959621,1763130562310,-278.10175159,0.00014686,2]
[393959631,1763130566846,-276.37045789,0.00014686,2]
[393959634,1763130569022,-210.91440072,0.00014686,2]
[393959638,1763130573834,-169.0405205,0.00014686,2]
[393959639,1763130577099,-338.30608802,0.00014686,2]
[393959640,1763130582098,-227.4550546,0.00014686,2]
[393959641,1763130585457,-393.95915316,0.00014686,2]
[393959642,1763130590288,-193.38639401,0.00014686,2]
[393959643,1763130592844,-286.2264369,0.00014686,2]
[393959644,1763130597964,-17.43085836,0.00014686,2]
[393959645,1763130597986,-198.71629508,0.00014985,2]
[393959646,1763130601655,-271.48907211,0.00014985,2]
[393959647,1763130606981,-160.76699827,0.00014985,2]
[393959648,1763130607014,-81.09747764,0.00014999,2]
[393959649,1763130609039,-218.90252236,0.00014999,2]
[393959650,1763130609078,-62.82101815,0.00014999,2]
[393959651,1763130616498,-237.17898185,0.00014999,2]
[393959652,1763130616524,-12.82101815,0.00014999,2]
[393959653,1763130618595,-195.0,0.00014999,2]
[393959654,1763130626526,-250.26707738,0.00014999,2]
[393959655,1763130630943,-192.33303981,0.00014999,2]
[393959673,1763130632468,-162.60775548,0.00014999,2]
[393959674,1763130632492,-386.97110918,0.00014999,2]
[393959675,1763130632505,-150.0,0.00014999,2]
[393959676,1763130632515,-15874.64172165,0.00015,3]
[393959701,1763130638647,-1916.28,0.00015,3]
[393959702,1763130638716,-149306.31573046,0.00015,3]
[393959704,1763130638726,-2789.63,0.00015094,2]
[393959706,1763130638736,-250.0,0.00015257,2]
[393959708,1763130638745,-2789.63,0.00015502,2]
[393959710,1763130638755,-8843.9746917,0.000159,2]
[393959712,1763130638764,-723.65989959,0.00015978,2]
[393959714,1763130638773,-2426.36956208,0.00016077,2]
[393959716,1763130638783,-1000.0,0.00016077,2]
[393959718,1763130638792,-760000.0,0.00016077,2]
[393959720,1763130638801,-1947.54834801,0.00016078,2]
[393959722,1763130638810,-167.64858324,0.00016078,2]
[393959724,1763130638823,-255.0,0.00016124,2]
[393959726,1763130638832,-195.0,0.00016127,2]
[393959729,1763130638843,-151.0,0.00016167,2]
[393959731,1763130638853,-151.0,0.00016167,2]
[393959733,1763130638862,-151.0,0.00016167,2]
[393959735,1763130638872,-151.0,0.00016167,2]
[393959737,1763130638884,-151.0,0.00016167,2]
[393959739,1763130638892,-151.0,0.00016167,2]
[393959741,1763130638902,-151.0,0.00016167,2]
[393959743,1763130638911,-151.0,0.00016167,2]
[393959745,1763130638921,-151.0,0.00016167,2]
[393959747,1763130638930,-151.0,0.00016167,2]
[393959749,1763130638940,-151.0,0.00016167,2]
[393959751,1763130638949,-151.0,0.00016167,2]
[393959753,1763130638959,-151.0,0.00016167,2]
[393959755,1763130638968,-151.0,0.00016167,2]
[393959757,1763130638978,-151.0,0.00016167,2]
[393959759,1763130638987,-151.0,0.00016167,2]
[393959761,1763130638996,-151.0,0.00016167,2]
[393959763,1763130639006,-151.0,0.00016167,2]
[393959765,1763130639016,-151.0,0.00016167,2]
[393959767,1763130639025,-151.0,0.00016167,2]
[393959769,1763130639035,-42466.2412517,0.00016168,2]
[393959771,1763130639044,-500.0,0.00016173,2]
[393959773,1763130639054,-500.0,0.00016173,2]
[393959775,1763130639063,-500.0,0.00016173,2]
[393959777,1763130639076,-500.0,0.00016173,2]
[393959779,1763130639086,-507.32409942,0.00016173,2]
[393959781,1763130639095,-500.0,0.00016173,2]
[393959783,1763130639104,-500.0,0.00016173,2]
[393959785,1763130639113,-500.0,0.00016173,2]
[393959787,1763130639122,-198.76349216,0.00016176,2]
[393959789,1763130639131,-500.0,0.00016176,2]
[393959790,1763130639141,-456.2042947,0.00016176,2]
[393959792,1763130639150,-232.63117814,0.00016176,2]
[393959794,1763130639159,-500.0,0.00016176,2]
[393959796,1763130639169,-401.72092243,0.00016176,2]
[393959797,1763130639178,-500.0,0.00016176,2]
[393959799,1763130639188,-500.0,0.00016176,2]
[393959800,1763130639197,-515.42408665,0.00016176,2]
[393959802,1763130639207,-319.97838066,0.00016176,2]
[393959804,1763130639216,-1000.0,0.00016178,2]
[393959805,1763130639225,-723.65989958,0.00016253,2]
[393959806,1763130639235,-1500.0,0.00016271,2]
[393959807,1763130639244,-150.99,0.00016271,2]
[393959808,1763130639253,-500.68799219,0.00016273,2]
[393959809,1763130639262,-531.85620126,0.00016273,2]
[393959810,1763130639283,-500.0,0.00016273,2]
[393959811,1763130639294,-500.0,0.00016273,2]
[393959812,1763130639304,-200.0,0.00016275,2]
[393959813,1763130639314,-2947.66,0.00016277,2]
[393959814,1763130639328,-272.41,0.00016277,2]
[393959815,1763130639337,-9999.99,0.00016277,2]
[393959816,1763130639347,-8044.19,0.00016277,2]
[393959817,1763130639356,-3251.15,0.00016277,2]
[393959818,1763130639367,-9999.99,0.00016277,2]
[393959819,1763130639376,-999.99,0.00016277,2]
[393959820,1763130639386,-9999.99,0.00016277,2]
[393959821,1763130639395,-7367.32,0.00016277,2]
[393959822,1763130639404,-9022.05253677,0.0001628,2]
[393959823,1763130639414,-1947.54834801,0.0001628,2]
[393959824,1763130639424,-4898.04,0.00016295,2]
[393959825,1763130639434,-769.95,0.00016322,2]
[393959826,1763130639443,-500.0,0.00016379,2]
[393959827,1763130639453,-283.76168162,0.000164,2]
[393959828,1763130639462,-238.11,0.00016408,2]
[393959829,1763130639471,-420.0,0.00016416,2]
[393959830,1763130639481,-500.0,0.00016438,2]
[393959831,1763130639491,-500.0,0.00016438,2]
[393959832,1763130639500,-500.0,0.00016438,2]
[393959833,1763130639510,-500.0,0.00016438,2]
[393959834,1763130639519,-500.0,0.00016438,2]
[393959835,1763130639529,-500.0,0.00016438,2]
[393959836,1763130639539,-531.25134452,0.00016438,2]
[393959837,1763130639547,-500.0,0.00016438,2]
[393959838,1763130639556,-500.0,0.00016438,2]
[393959839,1763130639566,-500.0,0.00016438,2]
[393959840,1763130639578,-500.0,0.00016438,2]
[393959841,1763130639587,-500.0,0.00016438,2]
[393959842,1763130639596,-500.0,0.00016438,2]
[393959843,1763130639605,-500.0,0.00016438,2]
[393959844,1763130639614,-500.0,0.00016438,2]
[393959845,1763130639624,-500.0,0.00016438,2]
[393959846,1763130639636,-500.0,0.00016438,2]
[393959847,1763130639645,-500.0,0.00016438,2]
[393959848,1763130639654,-500.0,0.00016438,2]
[393959849,1763130639663,-500.0,0.00016438,2]
[393959850,1763130639673,-500.0,0.00016438,2]
[393959851,1763130639682,-500.0,0.00016438,2]
[393959852,1763130639692,-500.0,0.00016438,2]
[393959853,1763130639701,-500.0,0.00016438,2]
[393959854,1763130639711,-500.0,0.00016438,2]
[393959855,1763130639721,-359.83389481,0.00016438,2]
[393959856,1763130639731,-3188.95,0.00016438,2]
[393959857,1763130639740,-338.57656952,0.00016438,2]
[393959858,1763130639749,-183.5,0.00016441,2]
[393959859,1763130639758,-9022.05253677,0.00016483,2]
[393959860,1763130639767,-1947.54834801,0.00016483,2]
[393959861,1763130639777,-195.0,0.00016484,2]
[393959862,1763130639787,-1320.3028566,0.00016484,2]
[393959863,1763130639796,-193.73037782,0.00016499,2]
[393959864,1763130639805,-1680.0,0.00016499,2]
[393959865,1763130639815,-55905.99106528,0.00016651,2]
[393959866,1763130639827,-9022.05253677,0.00016685,2]
[393959867,1763130639840,-1947.54834801,0.00016685,2]
[393959868,1763130639849,-167.64858322,0.00016685,2]
[393959869,1763130639858,-183.52713113,0.00016715,2]
[393959870,1763130639867,-1000.0,0.00016721,2]
[393959871,1763130639876,-1000.0,0.00016721,2]
[393959872,1763130639886,-1000.0,0.00016721,2]
[393959873,1763130639895,-8879.76,0.00016807,2]
[393959874,1763130639904,-563.26,0.00016807,2]
[393959875,1763130639914,-153.88483671,0.00016821,2]
[393959876,1763130639924,-1032.75071884,0.00016821,2]
[393959877,1763130639933,-220.0,0.00016841,2]
[393959878,1763130639942,-9022.05253677,0.00016888,2]
[393959879,1763130639951,-1947.54834801,0.00016888,2]
[393959880,1763130639960,-885.67103862,0.000169,2]
[393959881,1763130639970,-582.98899359,0.000169,2]
[393959882,1763130639979,-210.06111706,0.00016929,2]
[393959883,1763130639989,-151.0,0.00016935,2]
[393959884,1763130639998,-250.0,0.00016939,2]
[393959885,1763130640007,-300.0,0.00016939,2]
[393959886,1763130640017,-300.0,0.00016939,2]
[393959887,1763130640027,-300.0,0.00016939,2]
[393959888,1763130640036,-300.0,0.00016939,2]
[393959889,1763130640046,-393.50601346,0.00016939,2]
[393959890,1763130640055,-151.0,0.00016939,2]
[393959891,1763130640065,-151.0,0.00016952,2]
[393959892,1763130640076,-151.0,0.00016955,2]
[393959893,1763130640086,-151.0,0.00016958,2]
[393959894,1763130640095,-158.9633835,0.00016973,2]
[393959895,1763130640105,-502.29959489,0.00016973,2]
[393959896,1763130640114,-502.05353443,0.00016973,2]
[393959897,1763130640123,-500.0,0.00016973,2]
[393959898,1763130640133,-354.35067401,0.00016973,2]
[393959899,1763130640143,-500.0,0.00016973,2]
[393959900,1763130640152,-500.0,0.00016973,2]
[393959901,1763130640162,-321.39943934,0.00016975,2]
[393959902,1763130640171,-2759.0,0.00016986,2]
[393959903,1763130640181,-49362.86920596,0.0001699,2]
[393959904,1763130640190,-897916.95158761,0.00017,2]
[393959905,1763130640199,-160.0,0.00017,2]
[393959906,1763130640209,-700.0,0.00017,6]
[393959907,1763130640218,-5311.67,0.00017001,2]
[393959908,1763130640231,-171.52,0.00017077,2]
[393959909,1763130640241,-9022.05253677,0.0001709,2]
[393959910,1763130640250,-1947.54834801,0.0001709,2]
[393959911,1763130640259,-1500.0,0.000171,6]
[393959912,1763130640269,-170.94,0.0001711,2]
[393959913,1763130640278,-2200.0,0.000172,6]
[393959914,1763130640287,-509.78090184,0.00017268,2]
[393959915,1763130640297,-494.75873842,0.00017268,2]
[393959916,1763130640306,-1537.12849953,0.00017268,2]
[393959917,1763130640316,-238.11,0.00017272,2]
[393959918,1763130640333,-9022.05253677,0.00017293,2]
[393959919,1763130640342,-1947.54834801,0.00017293,2]
[393959920,1763130640351,-167.64858322,0.00017293,2]
[393959922,1763130640360,-3000.0,0.000173,6]
[393959924,1763130640371,-269.0,0.00017328,2]
[393959926,1763130640380,-433.0,0.00017339,2]
[393959927,1763130640390,-269.0,0.00017344,2]
[393959928,1763130640399,-582.98899359,0.000174,2]
[393959929,1763130640409,-3700.0,0.000174,6]
[393959930,1763130640419,-269.0,0.00017466,2]
[393959931,1763130640428,-269.0,0.0001747,2]
[393959932,1763130640438,-500.0,0.0001748,2]
[393959933,1763130640447,-500.0,0.0001748,2]
[393959934,1763130640457,-500.0,0.0001748,2]
[393959935,1763130640467,-532.64325832,0.0001748,2]
[393959936,1763130640476,-500.0,0.0001748,2]
[393959937,1763130640486,-500.0,0.0001748,2]
[393959938,1763130640496,-9022.05253677,0.00017495,2]
[393959939,1763130640506,-1947.54834801,0.00017495,2]
[393959940,1763130640515,-700.0,0.000175,6]
[393959941,1763130640529,-241.30452334,0.00017505,2]
[393959942,1763130640538,-500.0,0.00017521,2]
[393959943,1763130640548,-503.9039651,0.00017521,2]
[393959944,1763130640557,-1680.0,0.00017575,2]
[393959945,1763130640567,-700.0,0.000176,6]
[393959946,1763130640582,-269.0,0.00017618,2]
[393959947,1763130640591,-269.0,0.00017664,2]
[393959948,1763130640601,-16635.82063058,0.00017681,2]
[393959949,1763130640610,-2612.83081136,0.00017685,4]
[393959950,1763130640623,-1071.42770396,0.00017686,2]
[393959951,1763130640633,-290.58499829,0.00017686,2]
[393959952,1763130640647,-195.0,0.00017686,2]
[393959953,1763130640656,-300.0,0.00017686,2]
[393959954,1763130640666,-9022.05253677,0.00017698,2]
[393959955,1763130640676,-1947.54834801,0.00017698,2]
[393959956,1763130640690,-2145.0,0.00017699,2]
[393959958,1763130640699,-625.487,0.00017699,2]
[393959959,1763130640709,-6669.0,0.00017699,2]
[393959960,1763130640721,-3429.0,0.000177,2]
[393959961,1763130640731,-700.0,0.000177,6]
[393959962,1763130640741,-9999.99,0.00017728,2]
[393959963,1763130640751,-26745.04,0.00017728,2]
[393959964,1763130640760,-269.0,0.00017775,2]
[393959965,1763130640770,-269.0,0.00017789,2]
[393959966,1763130640781,-700.0,0.000178,6]
[393959967,1763130640790,-1281.0,0.00017832,2]
[393959968,1763130640800,-1597.4048,0.000179,2]
[393959969,1763130640810,-459.864,0.000179,3]
[393959970,1763130640820,-204.05378072,0.000179,2]
[393959971,1763130640835,-368.18598492,0.000179,2]
[393959972,1763130640845,-9022.05253677,0.000179,2]
[393959973,1763130640855,-1947.54834801,0.000179,2]
[393959974,1763130640864,-1189.0,0.000179,6]
[393959975,1763130640874,-167.64858322,0.000179,2]
[393959976,1763130640884,-302.87952389,0.000179,3]
[393959978,1763130640894,-442.4821488,0.000179,2]
[393959979,1763130640904,-830.79447086,0.000179,2]
[393959980,1763130640913,-708.86084466,0.000179,2]
[393959981,1763130640923,-653.0759502,0.000179,2]
[393959982,1763130640933,-1706.07904437,0.000179,2]
[393959983,1763130640943,-534.65358282,0.000179,2]
[393959984,1763130640953,-582.98899359,0.000179,2]
[393959985,1763130641148,-500.0,0.000179,2]
[393959986,1763130641158,-500.0,0.000179,2]
[393959987,1763130641168,-500.0,0.000179,2]
[393959988,1763130641177,-500.0,0.000179,2]
[393959989,1763130641187,-500.0,0.000179,2]
[393959990,1763130641196,-6103.97369591,0.000179,2]
[393959991,1763130641206,-1259.82,0.00017923,2]
[393959992,1763130641216,-269.0,0.0001795,2]
[393959993,1763130641226,-300.0,0.00017966,2]
[393959994,1763130641235,-9133.0,0.00017973,2]
[393959995,1763130641245,-14332.0,0.00017973,2]
[393959996,1763130641255,-1774.0,0.00017973,2]
[393959997,1763130641264,-500.0,0.00017973,2]
[393959998,1763130641274,-500.0,0.00017973,2]
[393959999,1763130641284,-500.0,0.00017973,2]
[393960000,1763130641294,-500.0,0.00017973,2]
[393960001,1763130641303,-501.62506393,0.00017973,2]
[393960002,1763130641312,-500.98759368,0.00017973,2]
[393960003,1763130641323,-500.0,0.00017973,2]
[393960004,1763130641335,-210.06111706,0.0001799,2]
[393960005,1763130641345,-210.06111706,0.0001799,2]
[393960006,1763130641358,-1089.6264092,0.00017999,2]
[393960007,1763130641368,-378.98053424,0.00017999,5]
[393960008,1763130641378,-1040.93099999,0.00017999,5]
[393960009,1763130641388,-500.0,0.00017999,2]
[393960010,1763130641397,-500.0,0.00017999,2]
[393960011,1763130641407,-500.0,0.00017999,2]
[393960012,1763130641416,-318.3772389,0.00017999,2]
[393960013,1763130641426,-500.0,0.00017999,2]
[393960014,1763130641435,-500.0,0.00017999,2]
[393960015,1763130641445,-500.0,0.00017999,2]
[393960016,1763130641455,-525.92146982,0.00017999,2]
[393960017,1763130641464,-300.0,0.00017999,2]
[393960018,1763130641474,-500.0,0.00017999,2]
[393960019,1763130641484,-500.0,0.00017999,2]